{"text_format":"2","workbook":"xlsx","n_sheets":1,"sheets":["Munka1"],"not_rendered":{"charts":0,"images":0,"macros":0,"external_links":0,"defined_names":0,"comments":0,"pivot_tables":0},"unopened":[],"bounds":{"document_bytes":16777216,"sheet_cells":100000,"run_cost":"one","rows_first":2000,"rows_last":500,"rows_between":2000,"halvings":0,"cell_chars":16384,"cell_head_chars":4096},"cells_cut":0,"cells_raw":0,"read":"whole","date_system":"1900"}

{"sheet":"Munka1","index":0,"n_rows":31,"n_cols":8,"rows_kept":31,"cut":false,"hidden":false,"merged":[[0,1,0,7],[1,1,1,7]]}
[null,"SZTE TIK - Földszinti raktárak átalakítása"]
[null,"Költségbecslés"]
[]
[null,"Megnevezés","Menny.","Egység","Anyag egységár","Díj egységre","Anyag összesen","Díj összesen"]
[]
[null,"Vízellátás-csatornázás"]
[1,"Bonást érintő vízvezeték szakasz víz elzárás és nyitás. (2 db mózsdónál)",2,"klt",null,null,{"$f":"C7*E7","v":0},{"$f":"C7*F7","v":0}]
[2,"Komplett mozsdó és szerelvényeinek leszerelése, víz- és szennyvízvezeték levágása, ledugózása a 0SZ013 (raktár) 079 helyiségben  ( 2 db mozsdónál)",2,"klt",null,null,{"$f":"C8*E8","v":0},{"$f":"C8*F8","v":0}]
[]
[null,"Fűtés"]
[1,"Fűtési rendszer szakaszos leürítése a munkálatok megkezdése előtt majd a munkák befejezése után a rendszer vízzel való  feltöltése, renszer légtelenítése.- az   1 db radiátor vonatkozásában.",1,"klt",null,null,{"$f":"C11*E11","v":0},{"$f":"C11*F11","v":0}]
[2,"Radiátor leszerelése vezeték átalakítással, tartókonzollal együtt, dugózva",1,"klt",null,null,{"$f":"C12*E12","v":0},{"$f":"C12*F12","v":0}]
[]
[null,"Légtechnika"]
["1.","Kör keresztmetszetű légcsatorna hálózat bontása",10,"m",null,null,{"$f":"C15*E15","v":0},{"$f":"C15*F15","v":0}]
["2.","Anemosztát bontása álmennyezetből\nkazetták pótlásával",2,"db",null,null,0,0]
["3.","Kör keresztmetszetű légcsatorna és idomaik szerelése,  tartószerkezet nélkül, spirálkorcolt lemezcső, horganyzott acéllemezből, NÁ 63-150 mm között, horganyzott acéllemezből, lemez vtg. 0,5 mm, DN 125",12,"m",null,null,0,0]
["4.","Kör keresztmetszetű légcsatorna és idomaik szerelése,  tartószerkezet nélkül, spirálkorcolt lemezcső, horganyzott acéllemezből, NÁ 160-250 mm között, horganyzott acéllemezből, lemez vtg. 0,5 mm, DN 160",11,"m",null,null,0,0]
["5.","Légtechnikai és szellőző berendezések vezetékeinek hő- és hangszigetelése (ívek, idomok, szerelvények szigetelése és burkolás nélkül), kör keresztmetszetű, szintetikus gumi alapú kaucsuk tekerccsel öntapadós kialakítással, csupasz kivitelben, öntapadó ragasztó szalag lezárással, NÁ 108 mm csőátmérő felett, falvastagság: 19 mm",10.24,"m2",null,null,0,0]
["6.","Kör keresztmetszetű légcsatorna és idomaik szerelése,  tartószerkezet nélkül, horganyzott acéllemez idomok, spirálkorcolt vagy hajlítható lemezcsőhöz, NÁ 160-250 mm között, ív,  préselt könyökidom, gumitömítéssel, horganyzott acéllemezből, DN 160",4,"db",null,null,0,0]
["7.","Kör keresztmetszetű légcsatorna és idomaik szerelése,  tartószerkezet nélkül, horganyzott acéllemez idomok, spirálkorcolt vagy hajlítható lemezcsőhöz, NÁ 160-250 mm között, préselt T-idom, gumitömítéssel, horganyzott acéllemezből, DN 160/125",2,"db",null,null,0,0]
["8.","Kör keresztmetszetű légcsatorna és idomaik szerelése,  tartószerkezet nélkül, horganyzott acéllemez idomok, spirálkorcolt vagy hajlítható lemezcsőhöz, NÁ 80-150 mm között, préselt T-idom, gumitömítéssel, horganyzott acéllemezből, DN 125/125",2,"db",null,null,0,0]
["9.","Flexibilis légcsatorna szerelés álmennyezetben Ø125",6,"m",null,null,0,0]
["10.","Befúvó légszelep elhelyezése álmennyezetbe (50 m3/h) beszabályozva",6,"db",null,null,0,0]
["11.","Építési törmelék elszállítása ( bontott anyagok) ",1,"ktg",null,null,0,0]
[]
[null,"Összesen (nettó Ft):",{"$nulls":4},{"$f":"SUM(G8:G25)","v":0},{"$f":"SUM(H8:H25)","v":0}]
[]
[null,"Mindösszesen anyag és díj (nettó):",{"$f":"G27+H27","v":0},"Ft"]
[null,"ÁFA:",{"$f":"C29*0.27","v":0},"Ft"]
[null,"Mindösszesen anyag és díj (bruttó):",{"$f":"C29+C30","v":0},"Ft"]